[Event "2nd Bassano Easter 2022"]
[Site "Bassano del Grappa"]
[Date "2022.04.16"]
[Round "6.3"]
[White "Postny, Evgeny"]
[Black "Nesterov, Arseniy"]
[Result "1/2-1/2"]
[ECO "D59"]
[WhiteElo "2567"]
[BlackElo "2522"]
[Annotator "TA"]
[PlyCount "39"]
[EventDate "2022.04.14"]
[EventType "swiss"]
[EventCountry "ITA"]
[SourceTitle "playchess.com"]
[Source "ChessBase"]
[SourceQuality "1"]
[TimeControl "30/3600+30:1800+30"]

{[%evp 24,39,0,0,0,-6,0,0,0,0,0,0,0,0,0,0,0,0]} 1. d4 {[%emt 0:00:04]} d5 {[%emt 0:00:06]} 2. c4 {[%emt 0:00:06]} e6 {[%emt 0:00:05]} 3. Nc3 {[%emt 0:00:10]} Nf6 {[%emt 0:00:10]} 4. Bg5 {[%emt 0:00:12]} Be7 {[%emt 0:00:16]} 5. e3 {[%emt 0:00:10]} O-O {[%emt 0:00:29]} 6. Nf3 {[%emt 0:00:21]} h6 {[%emt 0:01:47]} 7. Bh4 {[%emt 0:00:07]} b6 {[%emt 0:03:20]} 8. Rc1 {[%emt 0:03:18]} Bb7 {[%emt 0:01:56]} 9. cxd5 {[%emt 0:00:24]} Nxd5 {[%emt 0:00:39]} 10. Bxe7 {[%emt 0:00:39]} Qxe7 {[%emt 0:01:55]} 11. Bd3 {[%emt 0:00:47]} Rc8 {[%emt 0:04:07]} 12. O-O {[%emt 0:01:54]} Nxc3 {[%emt 0:00:53]} 13. Rxc3 {[%emt 0:00:14] The position is equal.} Nd7 {[%emt 0:01:58][%cal Bb8d7,Bd7f6,Bf6e4][%mdl 32] D59: Queen's Gambit Declined: Tartakower Defence: Main line (8 cxd5 Nxd5).} 14. Qe2 {[%emt 0:07:38]} c5 {[%emt 0:04:36]} 15. Ba6 {[%emt 0:04:07] [#]} Nf6 $146 {[%emt 0:00:29]} ({Predecessor:} 15... cxd4 16. Rxc8+ Bxc8 17. Nxd4 Bxa6 18. Qxa6 Nc5 19. Qc4 Qd7 20. b4 Ne4 21. Rc1 Nd6 22. Qa6 Rc8 23. Rd1 Nf5 24. Qf1 {½-½ (24) Halkias,S (2525)-Gavrilakis,N (2425) Athens 2001}) 16. Bxb7 {[%emt 0:00:43]} Qxb7 {[%emt 0:00:05]} 17. dxc5 {[%emt 0:05:44]} Ne4 {[%emt 0:00:31]} 18. Rc2 {[%emt 0:00:13]} Rxc5 {[%emt 0:00:45]} 19. Rxc5 {[%emt 0:01:08]} Nxc5 {[%emt 0:00:05]} 20. Rd1 {[%emt 0:00:59] Not much happened in this game.  Weighted Error Value: White=0.00 (flawless) /Black=0.01 (flawless)} 1/2-1/2

[Event "2nd Bassano Easter 2022"]
[Site "Bassano del Grappa"]
[Date "2022.04.16"]
[Round "6.4"]
[White "Petrov, Martin"]
[Black "Petkidis, Anthony"]
[Result "1-0"]
[WhiteElo "2542"]
[BlackElo "2420"]
[Annotator "TA"]
[PlyCount "23"]
[EventDate "2022.04.14"]
[EventType "swiss"]
[EventCountry "ITA"]
[SourceTitle "playchess.com"]
[Source "ChessBase"]
[SourceQuality "1"]
[TimeControl "30/3600+30:1800+30"]

{[%evp 8,8,20]} 1. Nf3 {[%emt 0:00:23]} Nf6 {[%emt 0:01:00]} 2. c4 {[%emt 0:00:10]} e6 {[%emt 0:01:12]} 3. Nc3 {[%emt 0:00:07]} d5 {[%emt 0:59:48]} 4. e3 {[%emt 0:01:06]} a6 {[%emt 0:00:00] [#] Not much happened in this game.} {Predecessor:} 5. b3 $146 Bd6 6. Bb2 {A17: English Opening: 1...Nf6 with ...Bb4.} O-O 7. g4 Nc6 8. g5 Ne4 9. h4 Nxc3 10. Bxc3 dxc4 11. bxc4 e5 12. Qb1 {1-0 (28) Ponkratov,P (2650)-Predke,A (2673) Moscow 2021} 1-0

[Event "2nd Bassano Easter 2022"]
[Site "Bassano del Grappa"]
[Date "2022.04.16"]
[Round "6.5"]
[White "Fier, Alexandr"]
[Black "Fischer, Daniel"]
[Result "1/2-1/2"]
[ECO "D38"]
[WhiteElo "2583"]
[BlackElo "2356"]
[Annotator "TA"]
[PlyCount "99"]
[EventDate "2022.04.14"]
[EventType "swiss"]
[EventCountry "ITA"]
[SourceTitle "playchess.com"]
[Source "ChessBase"]
[SourceQuality "1"]
[TimeControl "30/3600+30:1800+30"]

{[%evp 12,99,3,0,0,-12,0,2,-12,-22,2,0,0,-9,0,-2,10,0,0,-1,0,0,22,-5,36,24,25,8,18,52,46,-5,0,0,0,0,43,0,0,7,0,4,7,0,3,15,59,62,79,37,115,25,33,41,27,31,29,31,39,41,73,63,80,68,84,70,70,70,70,72,67,70,70,70,79,77,73,76,73,70,98,92,102,67,154,154,155,56,56,56]} 1. d4 {[%emt 0:00:02]} Nf6 {[%emt 0:00:08]} 2. c4 {[%emt 0:00:07]} e6 {[%emt 0:00:07]} 3. Nc3 {[%emt 0:00:13]} Bb4 {[%emt 0:00:07]} 4. Nf3 {[%emt 0:01:51]} d5 {[%emt 0:00:08]} 5. Qa4+ {[%emt 0:01:00]} Nc6 {[%emt 0:00:08]} 6. a3 {[%emt 0:00:09]} Bxc3+ {[%emt 0:00:14]} 7. bxc3 {[%emt 0:00:02]} Ne4 {[%emt 0:00:17] D38: Queen's Gambit Declined: Ragozin Defence (4 Nf3 Bb4).} 8. e3 {[%emt 0:01:02]} Nxc3 {[%emt 0:00:29]} 9. Qc2 {[%emt 0:00:09]} Ne4 {[%emt 0:00:06][%cal Bc3e4,Be4d6,Bd6f5][%mdl 32] The position is equal.} 10. Bd3 {[%emt 0:00:11]} Nd6 {[%emt 0:00:14]} 11. c5 {[%emt 0:00:20]} Nf5 {[%emt 0:00:06]} 12. O-O {[%emt 0:06:58] [#]} f6 $146 {[%emt 0:02:43]} ({Predecessor:} 12... h6 13. Rb1 O-O 14. Qc3 Nfe7 15. Bd2 b6 16. Rfc1 Na5 17. Qc2 Nc4 18. Bxc4 dxc4 19. Qxc4 {½-½ (33) Topalov,V (2760)-Anand,V (2779) Saint Louis 2016}) 13. Bb2 {[%emt 0:02:01]} h5 {[%emt 0:03:52]} 14. Rfe1 {[%emt 0:06:28]} Nce7 {[%emt 0:01:29]} 15. Nd2 {[%emt 0:13:12]} Kf7 {[%emt 0:01:52]} 16. f3 {[%emt 0:00:24][%cal Bf2f3,Bf3e4,Be4e5][%mdl 32]} a5 {[%emt 0:06:05]} 17. a4 {[%emt 0:04:55]} g5 {[%emt 0:06:42]} 18. e4 {[%emt 0:12:22]} dxe4 {[%emt 0:01:10]} 19. fxe4 {[%emt 0:00:40]} Nxd4 {[%emt 0:00:20]} 20. Qc4 {[%emt 0:00:13]} Nec6 {[%emt 0:02:25]} 21. Rf1 {[%emt 0:03:48]} ({White should try} 21. e5 $1 $14) 21... Kg6 {[%emt 0:06:30] And now ...e5 would win.} 22. e5+ $1 {[%emt 0:04:23]} f5 {[%emt 0:00:05]} 23. Rad1 $1 {[%emt 0:01:02][%cal Oh2h4]} Qd5 {[%emt 0:00:59] [#] ...Qxc4 is the strong threat.} (23... b6 $5 {[%cal Rc8a6]} 24. cxb6 Ba6 $11) 24. Bxf5+ $1 {[%emt 0:03:12]} Nxf5 {[%emt 0:05:31]} 25. Rxf5 {[%emt 0:00:02] Hoping for Rf6+.} Qxc4 $1 {[%emt 0:00:55]} (25... Kxf5 {leads to mate.} 26. Qc2+ Kg4 27. Ne4) 26. Rf6+ {[%emt 0:00:01]} Kg7 {[%emt 0:00:53]} 27. Nxc4 {[%emt 0:00:02]} Rf8 {[%emt 0:07:07]} 28. Bc3 {[%emt 0:03:59]} Rf7 {[%emt 0:07:51]} 29. Rdf1 {[%emt 0:02:29]} Rd7 {[%emt 0:01:21]} 30. Rf8 {[%emt 0:00:00]} ({Much worse is} 30. Rxe6 Rd3 31. Ref6 Be6 32. Rxe6 Rxc3 $11) 30... g4 {[%emt 0:00:00]} (30... b6 $14) 31. Re8 {[%emt 0:23:30] 0x0.001c68f4b568dp-1022s more active pieces.} (31. R1f6 $16) 31... Rd8 $11 {[%emt 0:05:27]} 32. Rxd8 {[%emt 0:02:38]} Nxd8 {[%emt 0:00:06]} 33. Bxa5 {[%emt 0:00:29]} b6 $1 {[%emt 0:04:00]} 34. cxb6 {[%emt 0:00:17]} cxb6 {[%emt 0:01:06]} 35. Bxb6 {[%emt 0:00:43]} Ba6 {[%emt 0:01:03]} 36. Rf4 {[%emt 0:02:16]} Nc6 {[%emt 0:01:59]} 37. Nd6 {[%emt 0:01:14]} Rf8 {[%emt 0:00:30]} 38. Rxf8 {[%emt 0:02:13]} Kxf8 $16 {[%emt 0:00:05][%mdl 4096] Endgame KBN-KBN} 39. Bc5 {[%emt 0:01:03]} Kg8 {[%emt 0:00:52]} 40. Ne4 {[%emt 0:02:25]} Nxe5 {[%emt 0:00:23]} 41. Nf6+ {[%emt 0:00:14]} Kf7 {[%emt 0:00:09]} 42. Nxh5 {[%emt 0:00:03]} Nd3 {[%emt 0:00:34]} 43. Bb6 {[%emt 0:00:47]} Bb7 {[%emt 0:04:40]} 44. a5 {[%emt 0:01:33][%cal Ba4a5,Ba5a6][%mdl 32]} Kg6 {[%emt 0:00:05]} 45. Ng3 {[%emt 0:00:05]} Nf4 {[%emt 0:00:07]} 46. Kf2 {[%emt 0:01:36]} e5 {[%emt 0:00:46]} 47. Nf1 {[%emt 0:01:02]} Nxg2 {[%emt 0:00:19]} ({Black should play} 47... Nd5 $1 $14) 48. a6 $1 {[%emt 0:00:10]} Bc6 {[%emt 0:00:25]} 49. Ne3 {[%emt 0:00:45]} (49. Nd2 $16) 49... Nxe3 $14 {[%emt 0:00:19]} 50. Bxe3 {[%emt 0:00:06] Weighted Error Value: White=0.13 (very precise) /Black=0.12 (very precise)} 1/2-1/2

[Event "2nd Bassano Easter 2022"]
[Site "Bassano del Grappa"]
[Date "2022.04.16"]
[Round "6.6"]
[White "Baum, Jonasz"]
[Black "Bosiocic, Marin"]
[Result "1-0"]
[ECO "C54"]
[WhiteElo "2287"]
[BlackElo "2522"]
[Annotator "TA"]
[PlyCount "55"]
[EventDate "2022.04.14"]
[EventType "swiss"]
[EventCountry "ITA"]
[SourceTitle "playchess.com"]
[Source "ChessBase"]
[SourceQuality "1"]
[TimeControl "30/3600+30:1800+30"]

{[%evp 13,55,0,10,12,22,0,0,0,10,2,33,25,55,12,37,42,120,110,213,205,199,185,192,211,414,435,529,511,704,700,702,692,726,721,698,699,3352,2487,29974,29975,6575,5589,5685,2236]} 1. e4 {[%emt 0:00:01]} e5 {[%emt 0:00:09]} 2. Nf3 {[%emt 0:00:03]} Nc6 {[%emt 0:00:07]} 3. Bc4 {[%emt 0:00:03]} Bc5 {[%emt 0:00:08]} 4. c3 {[%emt 0:00:02]} Nf6 {[%emt 0:00:05]} 5. d3 {[%emt 0:00:02]} d6 {[%emt 0:00:45]} 6. Bg5 {[%emt 0:00:04]} h6 {[%emt 0:01:11]} 7. Bh4 {[%emt 0:00:04]} a6 {[%emt 0:04:06]} 8. a4 $1 {[%emt 0:00:04] C54: Giuoco Piano: 4 c3 Nf6, main lines with 5 d4 and 5 d3.} Ba7 {[%emt 0:01:04]} 9. Nbd2 {[%emt 0:00:04]} g5 {[%emt 0:02:26]} 10. Bg3 {[%emt 0:00:05] The position is equal.} O-O {[%emt 0:01:10]} 11. O-O {[%emt 0:00:04]} Re8 {[%emt 0:06:55] [#]} 12. b4 $146 {[%emt 0:01:55][%cal Bb2b4,Bb4b5][%mdl 32]} ({Predecessor:} 12. Re1 Qe7 13. b4 Qf8 14. b5 Ne7 15. Nf1 Ng6 16. Ne3 Nf4 17. Bxf4 gxf4 18. Nd5 Nxd5 19. Bxd5 {1-0 (41) Nemcova,K (2169)-Ghukasyan,S (2168) Terme Catez 2021}) 12... Be6 {[%emt 0:02:12]} 13. Kh1 {[%emt 0:06:42]} Nh5 {[%emt 0:01:57]} 14. b5 {[%emt 0:03:17] Hoping for Bxe6.} Bxc4 {[%emt 0:05:20]} (14... Na5 $14) 15. Nxc4 $16 {[%emt 0:00:25]} Ne7 {[%emt 0:00:49] [#]} (15... Nb8 $16) 16. Nfxe5 $1 $18 {[%emt 0:05:21][%mdl 512]} Nxg3+ {[%emt 0:04:31]} 17. fxg3 {[%emt 0:00:04]} dxe5 {[%emt 0:00:06]} 18. Nxe5 {[%emt 0:00:05]} Qd6 $2 {[%emt 0:20:23]} (18... Rf8) 19. Nxf7 {[%emt 0:00:34]} Qe6 {[%emt 0:00:28]} 20. Qh5 {[%emt 0:00:35]} Rf8 {[%emt 0:01:22][%cal Rf8f7]} 21. Nxh6+ {[%emt 0:00:33][%cal Bf7h6,Bh6g4,Bg4e5][%mdl 32]} Kg7 {[%emt 0:00:07]} 22. Qxg5+ {[%emt 0:00:04]} (22. Ng4 Qg6 23. Qxg6+ Nxg6 $14) 22... Kh7 {[%emt 0:00:07]} 23. Ng4 {[%emt 0:00:17]} Ng8 {[%emt 0:01:36] Inhibits Rf6.} 24. Rf5 {[%emt 0:03:14]} Rxf5 {[%emt 0:05:01]} 25. exf5 {[%emt 0:00:08][%cal Be4f5,Bf5f6][%mdl 32]} ({Not} 25. Qxf5+ Qxf5 26. exf5 Ne7 $16) 25... Qf7 {[%emt 0:00:27]} 26. Qh4+ {[%emt 0:00:04]} Kg7 {[%emt 0:00:08]} 27. f6+ {[%emt 0:00:03]} ({Weaker is} 27. bxa6 Qxf5 28. d4 (28. axb7 Rf8 $11) 28... bxa6 $16) 27... Kf8 {[%emt 0:00:23]} 28. Ne5 {[%emt 0:00:04] Weighted Error Value: White=0.04 (flawless) /Black=0.91} 1-0

[Event "2nd Bassano Easter 2022"]
[Site "Bassano del Grappa"]
[Date "2022.04.16"]
[Round "6.7"]
[White "Gallego Alcazar, Andres Felipe"]
[Black "Kolb, Tobias"]
[Result "1/2-1/2"]
[ECO "E07"]
[WhiteElo "2523"]
[BlackElo "2316"]
[Annotator "TA"]
[PlyCount "61"]
[EventDate "2022.04.14"]
[EventType "swiss"]
[EventCountry "ITA"]
[SourceTitle "playchess.com"]
[Source "ChessBase"]
[SourceQuality "1"]
[TimeControl "30/3600+30:1800+30"]

{[%evp 16,61,14,16,31,20,38,32,44,37,33,21,19,28,33,27,30,15,20,13,16,8,15,0,50,41,36,28,53,16,14,20,18,7,4,11,6,11,27,20,27,12,12,15,12,10,12,0]} 1. d4 {[%emt 0:00:03]} d5 {[%emt 0:00:06]} 2. c4 {[%emt 0:00:05]} e6 {[%emt 0:00:03]} 3. Nf3 {[%emt 0:00:06]} Nf6 {[%emt 0:00:05]} 4. g3 {[%emt 0:00:07]} Be7 {[%emt 0:00:04]} 5. Bg2 {[%emt 0:00:06]} O-O {[%emt 0:00:05]} 6. Nc3 {[%emt 0:00:07]} c6 {[%emt 0:00:07][%cal Bc7c6,Bc6c5][%mdl 32]} 7. O-O {[%emt 0:00:12]} Nbd7 {[%emt 0:00:10]} 8. b3 {[%emt 0:00:17]} b6 {[%emt 0:02:30]} 9. Qd3 {[%emt 0:00:41]} Bb7 {[%emt 0:02:26] E07: Closed Catalan: Main Line (5 Nf3 0-0 6 0-0 Nbd7).} 10. Rd1 {[%emt 0:00:13]} c5 {[%emt 0:04:43]} 11. cxd5 {[%emt 0:00:40]} Nxd5 {[%emt 0:01:38] White is slightly better.} 12. Nxd5 {[%emt 0:01:04]} Bxd5 {[%emt 0:00:16]} 13. e4 {[%emt 0:02:43]} Bb7 {[%emt 0:00:28]} 14. Bb2 {[%emt 0:00:54]} cxd4 {[%emt 0:08:04]} 15. Qxd4 {[%emt 0:04:35][%csl Gb2][%cal Rd4g7] [#]} Nf6 $1 {[%emt 0:00:12]} 16. Qe3 {[%emt 0:09:06]} Qe8 {[%emt 0:02:34]} 17. Ne5 {[%emt 0:01:13]} Rd8 {[%emt 0:02:43]} 18. Bd4 {[%emt 0:06:16]} Nd7 {[%emt 0:06:29] [#]} 19. Nc4 $146 {[%emt 0:06:56]} ({Predecessor:} 19. Nxd7 Qxd7 20. Bf3 Qc7 21. Rac1 Qb8 22. Qc3 Rc8 23. Qb2 Rxc1 24. Rxc1 f6 25. Qe2 Rc8 26. Rxc8+ {½-½ (26) Baenziger,F (2408)-Gungl,T (2368) Marianske Lazne 2022}) 19... Bc5 {[%emt 0:05:39]} (19... Ba6 $11) 20. e5 {[%emt 0:06:48]} Bxg2 {[%emt 0:00:47]} 21. Kxg2 {[%emt 0:00:06]} Be7 {[%emt 0:07:12]} 22. Qf3 {[%emt 0:03:15]} Nb8 {[%emt 0:00:22]} 23. Rac1 {[%emt 0:04:09][%cal Oc4d6]} Qc6 {[%emt 0:02:37] Inhibits Nd6.} 24. Bb2 {[%emt 0:00:32]} Qxf3+ {[%emt 0:02:23]} 25. Kxf3 {[%emt 0:00:08]} Rxd1 {[%emt 0:07:33]} 26. Rxd1 {[%emt 0:00:04]} Rd8 {[%emt 0:00:08]} 27. Rxd8+ {[%emt 0:02:00]} Bxd8 {[%emt 0:00:05]} 28. Nd6 {[%emt 0:00:49]} Nc6 {[%emt 0:02:13] The position is equal.} 29. Ke4 {[%emt 0:00:09]} Be7 {[%emt 0:11:44]} 30. Nb5 {[%emt 0:00:00]} Kf8 {[%emt 0:00:00]} 31. Nd4 {[%emt 0:05:45] Weighted Error Value: White=0.06 (flawless) /Black=0.06 (flawless)} 1/2-1/2

[Event "2nd Bassano Easter 2022"]
[Site "Bassano del Grappa"]
[Date "2022.04.16"]
[Round "6.8"]
[White "Nandhidhaa, P V"]
[Black "Gilevych, Artem"]
[Result "1-0"]
[ECO "B29"]
[WhiteElo "2380"]
[BlackElo "2422"]
[Annotator "TA"]
[PlyCount "107"]
[EventDate "2022.04.14"]
[EventType "swiss"]
[EventCountry "ITA"]
[SourceTitle "playchess.com"]
[Source "ChessBase"]
[SourceQuality "1"]
[TimeControl "30/3600+30:1800+30"]

{[%evp 20,107,34,50,42,47,51,35,84,97,79,93,93,99,87,79,77,74,73,98,142,142,144,124,121,97,99,94,91,85,94,92,92,87,77,71,102,102,117,105,114,104,115,118,151,149,149,149,179,179,190,179,179,165,172,174,157,157,929,879,1005,960,1056,992,4133,2745,1993,1587,29969,29969,29969,29966,29961,2745,29973,29974,29974,29975,29975,29976,29976,29977,29979,29980,29980,29981,29982,29981,29980,12806]} 1. e4 {[%emt 0:00:15]} c5 {[%emt 0:00:05]} 2. Nf3 {[%emt 0:00:18]} Nf6 {[%emt 0:00:05]} 3. e5 {[%emt 0:01:34]} Nd5 {[%emt 0:00:26]} 4. Nc3 {[%emt 0:00:09]} e6 {[%emt 0:00:05]} 5. Nxd5 {[%emt 0:00:31]} exd5 {[%emt 0:00:05]} 6. d4 {[%emt 0:00:07]} Nc6 {[%emt 0:00:26]} 7. dxc5 {[%emt 0:02:50]} Bxc5 {[%emt 0:00:27]} 8. Qxd5 {[%emt 0:00:40]} d6 {[%emt 0:00:05]} 9. exd6 {[%emt 0:01:01]} Qb6 {[%emt 0:00:05]} 10. Qe4+ {[%emt 0:01:03]} Be6 {[%emt 0:00:06]} 11. Qh4 {[%emt 0:01:21]} Bxd6 {[%emt 0:02:19] B29: Sicilian: 2 Nf3 Nf6 (Nimzowitsch Variation).} 12. Be2 {[%emt 0:08:49] was the old line (12.Bd3).} Bf5 {[%emt 0:05:04]} 13. O-O {[%emt 0:06:00]} Bxc2 {[%emt 0:04:46] [#]} (13... O-O $1 $14 {is superior.}) 14. Bd1 $146 {[%emt 0:06:28]} ({Predecessor:} 14. Qc4 Bf5 15. Qd5 Qc5 16. Rd1 Rd8 17. Qxc5 Bxc5 18. Rxd8+ Nxd8 19. Bb5+ Bd7 20. Bxd7+ Kxd7 {½-½ (38) Remete,E (2132)-Gara,A (2340) Visegrad 2008}) 14... Bxd1 {[%emt 0:38:48]} 15. Rxd1 {[%emt 0:00:34]} Be7 {[%emt 0:04:06]} 16. Bg5 {[%emt 0:03:31] aiming for Bxe7.} f6 {[%emt 0:00:06]} 17. Be3 {[%emt 0:02:30]} Qb5 {[%emt 0:03:13]} 18. a4 {[%emt 0:05:13]} Qb3 {[%emt 0:01:33]} 19. Qh5+ {[%emt 0:02:22]} Qf7 {[%emt 0:00:49]} 20. Qb5 {[%emt 0:00:34]} O-O {[%emt 0:00:41]} 21. Qxb7 {[%emt 0:00:12]} Na5 {[%emt 0:01:06]} 22. Qd5 {[%emt 0:04:57] 0x0.00018dd7ffe2dp-1022s more active pieces.} Nb3 {[%emt 0:01:02] White must now prevent ...Qxd5.} 23. Qxf7+ {[%emt 0:01:49]} Kxf7 {[%emt 0:01:07]} 24. Rab1 {[%emt 0:00:08]} Rfd8 {[%emt 0:02:06]} 25. Nd4 {[%emt 0:01:48]} Nxd4 {[%emt 0:00:45]} 26. Rxd4 {[%emt 0:01:48]} Rxd4 {[%emt 0:00:04]} 27. Bxd4 {[%emt 0:00:02][%mdl 4096] Endgame KRB-KRB} Bb4 {[%emt 0:00:16]} 28. Kf1 {[%emt 0:01:21]} Rc8 {[%emt 0:01:57]} 29. Ke2 {[%emt 0:01:47]} Ke6 {[%emt 0:01:58]} 30. Kd3 {[%emt 0:00:00]} Kd5 {[%emt 0:00:00]} 31. Be3 {[%emt 0:04:18]} a6 {[%emt 0:03:51]} 32. Rc1 {[%emt 0:01:28]} Rxc1 {[%emt 0:12:53]} 33. Bxc1 {[%emt 0:00:15] KB-KB} h5 {[%emt 0:01:58]} 34. b3 {[%emt 0:01:32][%cal Bb2b3,Bb3b4][%mdl 32]} g5 {[%emt 0:00:27]} 35. Bb2 {[%emt 0:02:08]} Be7 {[%emt 0:00:28]} 36. Bc3 {[%emt 0:00:47]} Bd8 {[%emt 0:00:13]} 37. b4 {[%emt 0:01:31]} f5 {[%emt 0:00:04]} 38. Bd4 {[%emt 0:01:06]} h4 $2 {[%emt 0:02:33] This costs Black the game.} (38... Bc7 $16) 39. h3 $18 {[%emt 0:02:39]} g4 {[%emt 0:02:43]} 40. b5 {[%emt 0:01:13]} axb5 {[%emt 0:00:08]} 41. axb5 {[%emt 0:00:02][%cal Ba4b5,Bb5b6][%mdl 32]} Bc7 {[%emt 0:02:17]} 42. b6 {[%emt 0:04:19]} Bd6 {[%emt 0:01:26]} 43. Bf6 {[%emt 0:01:49]} gxh3 {[%emt 0:00:39]} 44. gxh3 {[%emt 0:00:04]} Kc6 {[%emt 0:00:04]} 45. Bd8 {[%emt 0:01:21]} Bc5 {[%emt 0:00:57]} 46. Ke2 {[%emt 0:02:53] White wants to mate with Kf3.} Kd7 {[%emt 0:02:25] [#]} 47. b7 $1 {[%emt 0:01:46] White mates.} Bd6 {[%emt 0:00:07]} 48. Bxh4 {[%emt 0:00:11]} Kc7 {[%emt 0:00:04]} 49. Kf3 {[%emt 0:00:48]} Kxb7 {[%emt 0:00:04]} 50. Bg3 {[%emt 0:00:08]} Bb4 {[%emt 0:01:01]} 51. Kf4 {[%emt 0:00:12]} Kc8 {[%emt 0:00:04]} 52. Kxf5 {[%emt 0:00:07]} Be1 {[%emt 0:00:43]} 53. Ke6 {[%emt 0:01:11]} Kd8 {[%emt 0:00:05]} 54. Kf7 {[%emt 0:00:05] Weighted Error Value: White=0.03 (flawless) /Black=0.30} (54. h4 $142 Ke8 55. h5 Kf8 56. Kf6 Kg8 57. Kg6 Kf8 58. Be5 Ke8 59. h6) 1-0

[Event "2nd Bassano Easter 2022"]
[Site "Bassano del Grappa"]
[Date "2022.04.16"]
[Round "6.9"]
[White "Hess, Max"]
[Black "Spyratos, Nikolaos"]
[Result "1/2-1/2"]
[ECO "A21"]
[WhiteElo "2395"]
[BlackElo "2100"]
[Annotator "TA"]
[PlyCount "122"]
[EventDate "2022.04.14"]
[EventType "swiss"]
[EventCountry "ITA"]
[SourceTitle "playchess.com"]
[Source "ChessBase"]
[SourceQuality "1"]
[TimeControl "30/3600+30:1800+30"]

{[%evp 9,122,20,17,11,21,14,18,11,25,26,34,-3,0,0,10,0,18,10,22,22,5,13,6,16,46,42,32,43,37,0,0,0,9,0,0,0,0,0,0,0,0,0,0,-11,0,-5,-17,-8,0,0,2704,1023,1847,-89,0,-79,8,9,15,12,10,14,8,8,8,8,12,14,13,4,13,0,16,4,4,4,11,10,13,13,20,20,20,20,20,20,275,269,221,20,20,13,13,13,13,13,20,20,440,6,6,0,0,0,6,0,8,0,0,0,8,0,0,0,8]} 1. c4 {[%emt 0:00:02]} e5 {[%emt 0:00:13]} 2. Nc3 {[%emt 0:00:06]} Bb4 {[%emt 0:00:08]} 3. Nd5 {[%emt 0:00:23]} a5 {[%emt 0:00:09]} 4. Nf3 {[%emt 0:00:27]} d6 {[%emt 0:01:50]} 5. a3 {[%emt 0:00:20]} Bc5 {[%emt 0:00:06]} 6. e3 {[%emt 0:00:18] A21: English Opening: 1...e5 2 Nc3.} c6 {[%emt 0:00:08]} 7. Nc3 {[%emt 0:00:04]} Nd7 {[%emt 0:00:29]} 8. d4 {[%emt 0:00:24]} Ba7 {[%emt 0:00:32]} 9. Be2 {[%emt 0:00:20]} Ngf6 {[%emt 0:00:41]} 10. g4 {[%emt 0:00:39] [#]} h6 $146 {[%emt 0:09:22]} ({Predecessor:} 10... O-O 11. g5 Ne8 12. Qc2 Nc7 13. h4 Qe7 14. Bd2 b5 15. dxe5 dxe5 16. Bd3 bxc4 17. Bxc4 {1-0 (30) Shevchenko,K (2647)-Alekseenko,K (2710) Terme Catez 2021}) 11. Rg1 {[%emt 0:00:23]} Qe7 {[%emt 0:02:25]} 12. h4 {[%emt 0:10:15]} Nf8 {[%emt 0:07:13]} 13. dxe5 {[%emt 0:01:15]} dxe5 {[%emt 0:00:35]} 14. g5 {[%emt 0:00:34]} hxg5 {[%emt 0:02:50]} 15. hxg5 {[%emt 0:00:06]} N6d7 {[%emt 0:01:33]} 16. Ne4 {[%emt 0:02:30]} Bb8 {[%emt 0:00:38] Prevents Nd6+.} 17. Bd2 {[%emt 0:08:32]} Nc5 {[%emt 0:05:13]} 18. Nxc5 {[%emt 0:02:53]} Qxc5 {[%emt 0:00:43]} 19. Qc2 {[%emt 0:00:12] Against Bf5} Be6 {[%emt 0:05:01]} 20. Bc3 {[%emt 0:04:01]} Bc7 {[%emt 0:01:54]} 21. O-O-O {[%emt 0:05:43]} Nd7 {[%emt 0:01:00]} 22. Nd2 {[%emt 0:06:53]} O-O-O {[%emt 0:02:06]} 23. Ne4 {[%emt 0:00:08]} Qe7 {[%emt 0:02:13]} 24. g6 {[%emt 0:01:57]} f6 {[%emt 0:05:50]} 25. Ng3 {[%emt 0:00:38]} (25. b4 {is interesting.} Nb6 26. Rxd8+ Rxd8 27. Be1) 25... Rh2 {[%emt 0:03:01]} 26. Nf5 {[%emt 0:02:48]} Qf8 {[%emt 0:00:59]} 27. Bg4 {[%emt 0:01:36][%cal Of5d6]} Kb8 {[%emt 0:01:39]} (27... Bxc4 $2 28. Bxa5 $1 Bxa5 29. Nd6+ Kc7 30. Nxc4 $18) 28. Rh1 {[%emt 0:13:31]} Qh8 {[%emt 0:09:10]} 29. Rxh2 {[%emt 0:00:43]} Qh7 {[%emt 0:07:19][%mdl 8192]} 30. Rh6 Qxh6 {[%emt 0:00:00]} 31. f3 $2 {[%emt 0:01:42]} (31. Nxh6 $18 Bxg4 32. Nxg4) 31... Qh8 {[%emt 0:00:00]} (31... Qxg6 $17 {Strongly threatening ...Qg5.} 32. Nxg7 Qxg7 33. Bxe6 Nc5 34. Rxd8+ Bxd8) 32. Nd6 {[%emt 0:11:44]} (32. Kb1 $11) 32... Qg8 {[%emt 0:05:26]} (32... Nc5 $1 $17 {White must now prevent ...Bxg4.} 33. Bxe6 Nxe6) 33. Bxe6 $11 {[%emt 0:05:53]} Qxe6 {[%emt 0:00:23] [#]} 34. Qf5 $1 {[%emt 0:01:08]} Nf8 {[%emt 0:01:23]} (34... Nc5 35. Qxe6) 35. Qxe6 {[%emt 0:01:44]} Nxe6 {[%emt 0:00:02]} 36. Nf5 {[%emt 0:00:08]} Rxd1+ {[%emt 0:00:33]} 37. Kxd1 {[%emt 0:00:02][%mdl 4096] Endgame KBN-KBN} Kc8 {[%emt 0:05:55]} 38. Ke2 {[%emt 0:06:35]} Kd7 {[%emt 0:00:19]} 39. Kd3 {[%emt 0:00:35]} Nc5+ {[%emt 0:00:12]} 40. Ke2 {[%emt 0:00:57]} Ne6 {[%emt 0:00:04]} 41. b4 {[%emt 0:00:42]} axb4 {[%emt 0:00:37]} 42. Bxb4 {[%emt 0:00:58]} c5 {[%emt 0:03:31]} 43. Bd2 {[%emt 0:02:06]} Bd6 {[%emt 0:01:43]} 44. Kd3 {[%emt 0:00:08]} Bf8 {[%emt 0:01:18]} 45. f4 {[%emt 0:00:20]} exf4 {[%emt 0:02:35]} 46. exf4 {[%emt 0:00:04]} Kc6 {[%emt 0:05:02]} 47. a4 {[%emt 0:01:06]} Kd7 $2 {[%emt 0:03:55][%mdl 8192]} (47... Nc7 $11 {and Black stays safe.}) 48. Ke4 $18 {[%emt 0:00:20]} Kc6 {[%emt 0:00:05]} 49. Ne3 $2 {[%emt 0:00:56]} (49. Ba5 $1 $18) 49... Nc7 $1 $11 {[%emt 0:02:10]} 50. Bc3 {[%emt 0:00:47]} Ne8 {[%emt 0:00:30]} 51. Nf5 {[%emt 0:05:33]} Kd7 {[%emt 0:00:38]} 52. Ba5 {[%emt 0:01:08]} Kc6 {[%emt 0:01:18]} 53. Bd8 {[%emt 0:00:28]} Kd7 $2 {[%emt 0:00:05][%mdl 8192] [#]} (53... Bd6 $11) 54. Bb6 $2 {[%emt 0:00:06]} (54. Kd5 $1 $18 {aiming for Ba5.} Bd6 55. Bb6) 54... Ke6 {[%emt 0:00:32] The position is equal.} 55. Ba7 {[%emt 0:02:25]} Bd6 {[%emt 0:00:58]} 56. Bb6 {[%emt 0:01:04]} Bf8 {[%emt 0:00:12]} 57. a5 {[%emt 0:01:22]} Bd6 {[%emt 0:00:30]} 58. Bd8 {[%emt 0:00:18]} Bf8 {[%emt 0:00:38]} 59. Bb6 $1 {[%emt 0:00:33]} Bd6 {[%emt 0:00:04]} 60. Bd8 {[%emt 0:01:11]} Bf8 {[%emt 0:00:06]} 61. Bb6 {[%emt 0:00:06]} Bd6 {[%emt 0:05:16] Weighted Error Value: White=0.41/Black=0.30} 1/2-1/2